{"text_format":"1","workbook":"xlsx","n_sheets":3,"sheets":["Analysis","Sheet1","Річна форма"],"not_rendered":{"charts":0,"images":0,"macros":1,"external_links":0,"defined_names":1,"comments":0,"pivot_tables":0},"unopened":[],"bounds":{"document_bytes":16777216,"sheet_cells":100000,"rows_first":2000,"rows_last":500,"rows_between":2000,"halvings":0,"cell_chars":16384,"cell_head_chars":4096},"cells_cut":0,"cells_raw":0,"read":"whole","date_system":"1900"}

{"sheet":"Analysis","index":0,"n_rows":4,"n_cols":48,"rows_kept":4,"cut":false,"hidden":false,"merged":[]}
["Назва"]
["ЄДРПОУ"]
[]
["Звітний рік","Звітний місяць","Тип електронного медичного запису (ЕМЗ)","ID ЕМЗ","Внесено до ЕСОЗ","Посада медичного працівника (виконавця) з ЕМЗ","Медичний працівник (виконавець) з ЕМЗ","Місце надання послуг зазначене в ЕМЗ","Тип направлення","Код ЄДРПОУ закладу де видано напрвлення","Посада лікаря який видав направлення","ID епізоду","Тип епізоду","Дата та час початку епізоду / початку госпіталізації","Дата та час початку періоду/ забору (ДЗ)","Дата та час кінця періоду/ виписки зі стаціонару","Тривалість лікування, в днях","Основний діагноз","Статус достовірності основного діагнозу","Клінічний статус основного діагнозу","Додаткові/супутні діагнози","Спростовані та помилкові додаткові діагнози","Перелік інтервенцій (послуги/діагностичні звіти/процедури)","Клас взаємодії","Приорітет","Тип взаємодії","Підстава звернення в стаціонар (госпіталізації)","Результат лікування (виписки)","Унікальний код пацієнта","Наявність декларації в пацієнта на момент створення ЕМЗ","Стать пацієнта","Вага при госпіталізації, грам","Вік пацієнта в днях на момент створення ЕМЗ","Вік пацієнта в роках на момент створення ЕМЗ","АДСГ","Пакет послуг","Номер послуги","Тариф, грн","Фактична частина оплати за період (без ГБ), грн","Включення медичного запису до статистики","Включення медичного запису до звіту","Коментар щодо виявлених помилок","Деталі виявлених помилок за результатами автоматичної перевірки ЕМЗ щодо відповідності критеріям повноти та достовірності даних","Деталі виявлених невідповідностей, які потребують додаткової перевірки та верифікації з боку надавача послуг","Деталі помилок/конфліктів при групуванні","Деталі перегляду НСЗУ пакету медичних послуг","Додаткові коментарі/зауваження за результатами автоматичних перевірок","Дата перегляду НСЗУ пакету медичних послуг"]

{"sheet":"Sheet1","index":1,"n_rows":175,"n_cols":1001,"rows_kept":175,"cut":false,"hidden":false,"merged":[]}
[]
[null,null,null,"Тривалість періоду, за який внесені дані в таблицю    ","початок періоду (дд.мм.рррр)",null,null,null,null,null,null,null,null,null,null,null,null,null,null,null,null,null,null,null,null,null,null,null,null,null,null,null,null,null,null,null,null,null,null,null,null,null,null,null,null,null,null,null,null,null,null,null,null,null,null,null,null,null,null,null,null,null,null,null,null,null,null,null,null,null,null,null,null,null,null,null,null,null,null,null,null,null,null,null,null,null,null,null,null,null,null,null,null,null,null,null,null,null,null,null,null,null,null,null,null,null,null,null,null,null,null,null,null,null,null,null,null,null,null,null,null,null,null,null,null,null,null,null,null,null,null,null,null,null,null,null,null,null,null,null,null,null,null,null,null,null,null,null,null,null,null,null,null,null,null,null,null,null,null,null,null,null,null,null,null,null,null,null,null,null,null,null,null,null,null,null,null,null,null,null,null,null,null,null,null,null,null,null,null,null,null,null,null,null,null,null,null,null,null,null,null,null,null,null,null,null,null,null,null,null,null,null,null,null,null,null,null,null,null,null,null,null,null,null,null,null,null,null,null,null,null,null,null,null,null,null,null,null,null,null,null,null,null,null,null,null,null,null,null,null,null,null,null,null,null,null,null,null,null,null,null,null,null,null,null,null,null,null,null,null,null,null,null,null,null,null,null,null,null,null,null,null,null,null,null,null,null,null,null,null,null,null,null,null,null,null,null,null,null,null,null,null,null,null,null,null,null,null,null,null,null,null,null,null,null,null,null,null,null,null,null,null,null,null,null,null,null,null,null,null,null,null,null,null,null,null,null,null,null,null,null,null,null,null,null,null,null,null,null,null,null,null,null,null,null,null,null,null,null,null,null,null,null,null,null,null,null,null,null,null,null,null,null,null,null,null,null,null,null,null,null,null,null,null,null,null,null,null,null,null,null,null,null,null,null,null,null,null,null,null,null,null,null,null,null,null,null,null,null,null,null,null,null,null,null,null,null,null,null,null,null,null,null,null,null,null,null,null,null,null,null,null,null,null,null,null,null,null,null,null,null,null,null,null,null,null,null,null,null,null,null,null,null,null,null,null,null,null,null,null,null,null,null,null,null,null,null,null,null,null,null,null,null,null,null,null,null,null,null,null,null,null,null,null,null,null,null,null,null,null,null,null,null,null,null,null,null,null,null,null,null,null,null,null,null,null,null,null,null,null,null,null,null,null,null,null,null,null,null,null,null,null,null,null,null,null,null,null,null,null,null,null,null,null,null,null,null,null,null,null,null,null,null,null,null,null,null,null,null,null,null,null,null,null,null,null,null,null,null,null,null,null,null,null,null,null,null,null,null,null,null,null,null,null,null,null,null,null,null,null,null,null,null,null,null,null,null,null,null,null,null,null,null,null,null,null,null,null,null,null,null,null,null,null,null,null,null,null,null,null,null,null,null,null,null,null,null,null,null,null,null,null,null,null,null,null,null,null,null,null,null,null,null,null,null,null,null,null,null,null,null,null,null,null,null,null,null,null,null,null,null,null,null,null,null,null,null,null,null,null,null,null,null,null,null,null,null,null,null,null,null,null,null,null,null,null,null,null,null,null,null,null,null,null,null,null,null,null,null,null,null,null,null,null,null,null,null,null,null,null,null,null,null,null,null,null,null,null,null,null,null,null,null,null,null,null,null,null,null,null,null,null,null,null,null,null,null,null,null,null,null,null,null,null,null,null,null,null,null,null,null,null,null,null,null,null,null,null,null,null,null,null,null,null,null,null,null,null,null,null,null,null,null,null,null,null,null,null,null,null,null,null,null,null,null,null,null,null,null,null,null,null,null,null,null,null,null,null,null,null,null,null,null,null,null,null,null,null,null,null,null,null,null,null,null,null,null,null,null,null,null,null,null,null,null,null,null,null,null,null,null,null,null,null,null,null,null,null,null,null,null,null,null,null,null,null,null,null,null,null,null,null,null,null,null,null,null,null,null,null,null,null,null,null,null,null,null,null,null,null,null,null,null,null,null,null,null,null,null,null,null,null,null,null,null,null,null,null,null,null,null,null,null,null,null,null,null,null,null,null,null,null,null,null,null,null,null,null,null,null,null,null,null,null,null,null,null,null,null,null,null,null,null,null,null,null,null,null,null,null,null,null,null,null,null,null,null,null,null,null,null,null,null,null,null,null,null,null,null,null,null,null,null,null,null,null,null,null,null,null,null,null,null,null,null,null,null,null,null,null,null,null,null,null,null,null,null,null,null,null,null,null,null,null,null,null,null,null,null,null,null,null,null,null,null,null,null,null,null,null,null,null,null,null,null,null,null,null,null,null,"2024-01-01"]
[null,null,null,null,"кінець періоду (дд.мм.рррр)",null,null,null,null,null,null,null,null,null,null,null,null,null,null,null,null,null,null,null,null,null,null,null,null,null,null,null,null,null,null,null,null,null,null,null,null,null,null,null,null,null,null,null,null,null,null,null,null,null,null,null,null,null,null,null,null,null,null,null,null,null,null,null,null,null,null,null,null,null,null,null,null,null,null,null,null,null,null,null,null,null,null,null,null,null,null,null,null,null,null,null,null,null,null,null,null,null,null,null,null,null,null,null,null,null,null,null,null,null,null,null,null,null,null,null,null,null,null,null,null,null,null,null,null,null,null,null,null,null,null,null,null,null,null,null,null,null,null,null,null,null,null,null,null,null,null,null,null,null,null,null,null,null,null,null,null,null,null,null,null,null,null,null,null,null,null,null,null,null,null,null,null,null,null,null,null,null,null,null,null,null,null,null,null,null,null,null,null,null,null,null,null,null,null,null,null,null,null,null,null,null,null,null,null,null,null,null,null,null,null,null,null,null,null,null,null,null,null,null,null,null,null,null,null,null,null,null,null,null,null,null,null,null,null,null,null,null,null,null,null,null,null,null,null,null,null,null,null,null,null,null,null,null,null,null,null,null,null,null,null,null,null,null,null,null,null,null,null,null,null,null,null,null,null,null,null,null,null,null,null,null,null,null,null,null,null,null,null,null,null,null,null,null,null,null,null,null,null,null,null,null,null,null,null,null,null,null,null,null,null,null,null,null,null,null,null,null,null,null,null,null,null,null,null,null,null,null,null,null,null,null,null,null,null,null,null,null,null,null,null,null,null,null,null,null,null,null,null,null,null,null,null,null,null,null,null,null,null,null,null,null,null,null,null,null,null,null,null,null,null,null,null,null,null,null,null,null,null,null,null,null,null,null,null,null,null,null,null,null,null,null,null,null,null,null,null,null,null,null,null,null,null,null,null,null,null,null,null,null,null,null,null,null,null,null,null,null,null,null,null,null,null,null,null,null,null,null,null,null,null,null,null,null,null,null,null,null,null,null,null,null,null,null,null,null,null,null,null,null,null,null,null,null,null,null,null,null,null,null,null,null,null,null,null,null,null,null,null,null,null,null,null,null,null,null,null,null,null,null,null,null,null,null,null,null,null,null,null,null,null,null,null,null,null,null,null,null,null,null,null,null,null,null,null,null,null,null,null,null,null,null,null,null,null,null,null,null,null,null,null,null,null,null,null,null,null,null,null,null,null,null,null,null,null,null,null,null,null,null,null,null,null,null,null,null,null,null,null,null,null,null,null,null,null,null,null,null,null,null,null,null,null,null,null,null,null,null,null,null,null,null,null,null,null,null,null,null,null,null,null,null,null,null,null,null,null,null,null,null,null,null,null,null,null,null,null,null,null,null,null,null,null,null,null,null,null,null,null,null,null,null,null,null,null,null,null,null,null,null,null,null,null,null,null,null,null,null,null,null,null,null,null,null,null,null,null,null,null,null,null,null,null,null,null,null,null,null,null,null,null,null,null,null,null,null,null,null,null,null,null,null,null,null,null,null,null,null,null,null,null,null,null,null,null,null,null,null,null,null,null,null,null,null,null,null,null,null,null,null,null,null,null,null,null,null,null,null,null,null,null,null,null,null,null,null,null,null,null,null,null,null,null,null,null,null,null,null,null,null,null,null,null,null,null,null,null,null,null,null,null,null,null,null,null,null,null,null,null,null,null,null,null,null,null,null,null,null,null,null,null,null,null,null,null,null,null,null,null,null,null,null,null,null,null,null,null,null,null,null,null,null,null,null,null,null,null,null,null,null,null,null,null,null,null,null,null,null,null,null,null,null,null,null,null,null,null,null,null,null,null,null,null,null,null,null,null,null,null,null,null,null,null,null,null,null,null,null,null,null,null,null,null,null,null,null,null,null,null,null,null,null,null,null,null,null,null,null,null,null,null,null,null,null,null,null,null,null,null,null,null,null,null,null,null,null,null,null,null,null,null,null,null,null,null,null,null,null,null,null,null,null,null,null,null,null,null,null,null,null,null,null,null,null,null,null,null,null,null,null,null,null,null,null,null,null,null,null,null,null,null,null,null,null,null,null,null,null,null,null,null,null,null,null,null,null,null,null,null,null,null,null,null,null,null,null,null,null,null,null,null,null,null,null,null,null,null,null,null,null,null,null,null,null,null,null,null,null,null,null,null,null,null,null,null,null,null,null,null,null,null,null,null,null,null,null,null,null,null,null,null,null,null,null,null,null,null,null,null,null,null,null,null,null,null,null,null,null,null,null,null,null,null,null,null,null,"2025-01-01"]
[]
[null,"1.     Кількість пацієнтів з діагнозом (коди МКХ-10), при яких рекомендовано проводити тестування на ВІЛ-інфекцію"]
[null,null,null,"5. НК 025:2021"]
[]
[null,"№ рядка","Серійно-порядковий код","Назва захворювання або спорідненої проблеми охорони здоров’я","Кількість звернень за медичною допомогою \n"]
[null,1,2,3,4]
[null,1,"A02","Iнші сальмонельозні інфекції",0]
[null,2,"A07.2","Криптоспоридіоз",0]
[null,3,"A07.3","Iзоспороз",0]
[null,4,"A07.8","Iнші уточнені протозойні кишкові хвороби",0]
[null,5,"A09","Інший гастроентерит та коліт інфекційного та неуточненого походження",0]
[null,6,"A15","Туберкульоз органів дихання, підтверджений бактеріологічно та гістологічно",0]
[null,7,"A16","Туберкульоз органів дихання, не підтверджений бактеріологічно та гістологічно",0]
[null,8,"A17","Туберкульоз нервової системи",0]
[null,9,"A18","Туберкульоз інших органів",0]
[null,10,"A19","Міліарний туберкульоз",0]
[null,11,"A56.2","Хламідійна інфекція сечостатевого тракту, неуточнена ",0]
[null,12,"A56.3","Хламідійна інфекція ануса та прямої кишки",0]
[null,13,"A31","Iнфекція, зумовлена іншими мікобактеріями",0]
[null,14,"A32.1","Лістеріозний менінгіт та менінгоенцефаліт",0]
[null,15,"A39.0","Менінгококовий менінгіт (G01)",0]
[null,16,"А 56.4","Хламідійна інфекція глотки",0]
[null,17,"A40.3","Септицемія, спричинена Streptocoсcus pneumonіae",0]
[null,18,"A51","Ранній сифіліс",0]
[null,19,"A52","Пізній сифіліс",0]
[null,20,"A53","Iнші та неуточнені форми сифілісу",0]
[null,21,"A54","Гонококова інфекція",0]
[null,22,"A55","Хламідійна лімфогранульома (венерична)",0]
[null,23,"A59","Трихомоніаз",0]
[null,24,"A60.1","Герпесвірусна інфекція анальної ділянки та прямої кишки",0]
[null,25,"A60.9","Герпесвірусна інфекція анальної ділянки та статевих органів, неуточнена",0]
[null,26,"A63","Iнші хвороби, що передаються переважно статевим шляхом, не класифіковані в інших рубриках",0]
[null,27,"A56.8","Хламідійна інфекція, що передається статевим шляхом іншої локалізації ",0]
[null,28,"A81.2","Прогресуюча багатовогнищева лейкоенцефалопатія",0]
[null,29,"A87.9","Вірусний менінгіт неуточнений",0]
[null,30,"B00","Герпесвірусні (герпес простий) інфекційні хвороби",0]
[null,31,"B02","Оперізувальний лишай (herpes zoster)",0]
[null,32,"B16","Гострий гепатит В",0]
[null,33,"B17.1","Гострий гепатит С",0]
[null,34,"B18.0","Хронічний вірусний гепатит В з дельтаагентом",0]
[null,35,"B18.1","Хронічний вірусний гепатит В без дельтаагента ",0]
[null,36,"B18.2","Хронічний вірусний гепатит С",0]
[null,37,"B25.0","Цитомегаловірусний пневмоніт (J17.1) ",0]
[null,38,"B25.8","Iнші цитомегаловірусні хвороби",0]
[null,39,"B25.9","Цитомегаловірусна хвороба, неуточнена",0]
[null,40,"B27","Інфекційний мононуклеоз",0]
[null,41,"B37.1","Легеневий кандидоз",0]
[null,42,"B37.8","Кандидоз інших локалізацій",0]
[null,43,"B38.3","Кокцидіоїдоз шкіри",0]
[null,44,"B38.4","Кокцидіоїдомікозний менінгіт (G02.1) ",0]
[null,45,"B38.7","Дисемінований кокцидіоїдомікоз ",0]
[null,46,"B38.8","Iнші форми кокцидіоїдозу",0]
[null,47,"B38.9","Кокцидіоїдоз, неуточнений",0]
[null,48,"B39.3","Легеневий гістоплазмоз, зумовлений Histoplasma capsulatum, неуточнений\n",0]
[null,49,"B39.4","Дисемінований гістоплазмоз, зумовлений Histoplasma capsulatum",0]
[null,50,"B39.5","Гістоплазмоз, зумовлений Hіstoplasma duboіsіі ",0]
[null,51,"B39.9","Гістоплазмоз, неуточнений",0]
[null,52,"B45.1","Церебральний криптококоз ",0]
[null,53,"B45.2","Криптококоз шкіри",0]
[null,54,"B45.3","Криптококоз кісток",0]
[null,55,"B45.7","Дисемінований криптококоз ",0]
[null,56,"B45.8","Інші форми криптококозу ",0]
[null,57,"B45.9","Криптококоз, неуточнений",0]
[null,58,"B50","Малярія, спричинена Plasmodіum falcіparum",0]
[null,59,"B51","Малярія, спричинена Plasmodіum vіvax",0]
[null,60,"B52","Малярія, спричинена Plasmodіum malarіae",0]
[null,61,"B53","Iнші форми паразитологічно підтвердженої малярії",0]
[null,62,"B54","Малярія, неуточнена",0]
[null,63,"B55","Лейшманіоз",0]
[null,64,"B56","Африканський трипаносомоз ",0]
[null,65,"B57","Хвороба Шагаса",0]
[null,66,"B58","Токсоплазмоз",0]
[null,67,"B59","Пневмоцистоз",0]
[null,68,"B60.0","Бабезіоз",0]
[null,69,"B60.1","Акантамебіаз",0]
[null,70,"B60.2","Неглеріаз",0]
[null,71,"B60.8","Iнші уточнені протозойні захворювання",0]
[null,72,"B64","Неуточнена протозойна хвороба",0]
[null,73,"B65","Шистосомоз (більгарціоз)",0]
[null,74,"B66","Iнші трематодози",0]
[null,75,"B67","Ехінококоз",0]
[null,76,"B68","Теніоз ",0]
[null,77,"B69","Цистицеркоз",0]
[null,78,"B70","Дифілоботріоз і спарганоз",0]
[null,79,"B71","Інші інфекції, спричинені цестодами",0]
[null,80,"B72","Дракункульоз",0]
[null,81,"B73","Онхоцеркоз",0]
[null,82,"B74","Філяріатоз",0]
[null,83,"B75","Трихінельоз",0]
[null,84,"B76","Анкілостомідоз",0]
[null,85,"B77","Аскаридоз",0]
[null,86,"B78","Стронгілоїдоз",0]
[null,87,"B81","Iнші кишкові гельмінтози, не класифіковані в інших рубриках",0]
[null,88,"B82","Кишковий паразитизм, неуточнений",0]
[null,89,"B83","Iнші гельмінтози",0]
[null,90,"C20","Злоякісне новоутворення прямої кишки",5]
[null,91,"C34","Злоякісне новоутворення бронхів та легенів",4]
[null,92,"C46","Саркома Капоші",0]
[null,93,"C53","Злоякісне новоутворення шийки матки",1]
[null,94,"C82 ","Неходжкінська лімфома, фолікулярна (нодулярна) ",0]
[null,95,"C83","Неходжкінська лімфома, дифузна",1]
[null,96,"C84","Лімфома зі зрілих Т/NK-клітин",0]
[null,97,"C85","Iнші та неуточнені типи неходжкінської лімфоми ",0]
[null,98,"D69.5","Вторинна тромбоцитопенія",0]
[null,99,"D69.6","Тромбоцитопенія, неуточнена ",0]
[null,100,"D70","Агранолоцитоз",0]
[null,101,"F03","Неуточнена деменція",0]
[null,102,"F10","Розлади психіки та поведінки внаслідок вживання алкоголю",0]
[null,103,"F11","Розлади психіки та поведінки внаслідок вживання опіоїдів",0]
[null,104,"F12","Розлади психіки та поведінки внаслідок вживання канабіоїдів",0]
[null,105,"F13","Розлади психіки та поведінки внаслідок вживання седативних чи снодійних речовин",0]
[null,106,"F14","Розлади психіки та поведінки внаслідок вживання кокаїну",0]
[null,107,"F15","Розлади психіки та поведінки внаслідок вживання інших стимуляторів, включаючи кофеїн",0]
[null,108,"F16","Розлади психіки та поведінки внаслідок вживання галюциногенів",0]
[null,109,"F18","Розлади психіки та поведінки внаслідок вживання летючих розчинників",0]
[null,110,"F19","Розлади психіки та поведінки внаслідок вживання декількох наркотичних засобів та інших психоактивних речовин",0]
[null,111,"G00.1","Пневмококовий менінгіт",0]
[null,112,"G01","Менінгіт при бактеріальних хворобах, класифікованих в інших рубриках",0]
[null,113,"G03","Менінгіт внаслідок інших та неуточнених причин",0]
[null,114,"G35","Розсіяний склероз",10]
[null,115,"G61.0","Синдром Гійєна-Барре",0]
[null,116,"J12.0","Аденовірусна пневмонія",0]
[null,117,"J12.1","Пневмонія, спричинена респіраторносинцитіальним вірусом",0]
[null,118,"J12.2","Пневмонія, спричинена вірусом парагрипу",0]
[null,119,"J12.8","Iнша вірусна пневмонія",0]
[null,120,"J12.9","Вірусна пневмонія, неуточнена",13]
[null,121,"J13","Пневмонія, спричинена Streptococcus pneumonіae",0]
[null,122,"J14","Пневмонія, спричинена Haemophіlus іnfluenzae",0]
[null,123,"J15.0","Пневмонія, спричинена Klebsіella pneumоnіae",0]
[null,124,"J15.1","Пневмонія, спричинена Pseudomonas",0]
[null,125,"J15.2","Пневмонія стафілококова",0]
[null,126,"J15.3","Пневмонія стрептококова, групи В",0]
[null,127,"J15.4","Пневмонія, спричинена іншими стрептококами",0]
[null,128,"J15.5","Пневмонія, спричинена Escherіchіa colі",0]
[null,129,"J15.6","Пневмонія, спричинена іншими аеробними грамнегативними бактеріями",0]
[null,130,"J15.7","Пневмонія, спричинена Mycoplasmа pneumonіae",0]
[null,131,"J15.8","Iнша бактеріальна пневмонія",0]
[null,132,"J15.9","Бактеріальна пневмонія, неуточнена",0]
[null,133,"J16.0","Пневмонія, спричинена хламідіями",0]
[null,134,"J16.8","Пневмонія, спричинена іншими уточненими інфекційними агентами",0]
[null,135,"J17.0","Пневмонія при бактеріальних хворобах, класифікованих в інших рубриках",0]
[null,136,"J17.0","Пневмонія при бактеріальних хворобах, класифікованих в інших рубриках",0]
[null,137,"J17.1","Пневмонія при вірусних хворобах, класифікованих в інших рубриках",0]
[null,138,"J17.2","Пневмонія при мікозах",0]
[null,139,"J17.3","Пневмонія при паразитарних хворобах",0]
[null,140,"J17.8","Пневмонія при інших хворобах, класифікованих в інших рубриках",0]
[null,141,"J18.0","Бронхопневмонія, неуточнена",0]
[null,142,"J18.1","Дольова пневмонія, неуточнена",0]
[null,143,"J18.2","Гіпостатична пневмонія, неуточнена",0]
[null,144,"J18.8","Iнша пневмонія, збудник неуточнений",6]
[null,145,"J18.9","Пневмонія, неуточнена",0]
[null,146,"J86","Піоторакс",0]
[null,147,"K13.2","Лейкоплакія та інші ураження епітелію порожнини рота, включаючи язик",0]
[null,148,"K13.3","Волосата лейкоплакія",0]
[null,149,"L21","Себорейний дерматит",0]
[null,150,"L40","Псоріаз",0]
[null,151,"M00.10","Пневмококовий артрит і поліартрит",0]
[null,152,"M34.9","Системний склероз неуточнений",0]
[null,153,"N70","Сальпінгіт і оофорит",1]
[null,154,"N71","Запальне захворювання матки, за винятком шийки матки",0]
[null,155,"N72"," Запальне захворювання шийки матки",0]
[null,156,"N73","Інші запальні захворювання органів малого таза у жінок",0]
[null,157,"N74","Запальні ураження органів малого таза у жінок при хворобах, класифікованих в інших рубриках\n",0]
[null,158,"N75","Хвороби бартолінової залози",0]
[null,159,"N76","Iнші запальні хвороби піхви і вульви",0]
[null,160,"N77","Вульвовагінальні виразки та запалення при хворобах, класифікованих в інших рубриках",0]
[null,161,"N87","Дисплазія шийки матки",0]
[null,162,"R50.","Лихоманка іншого та невідомого походження",0]
[null,163,"R59","Збільшення лімфатичних вузлів",0]
[null,164,"R63.4","Анормальне зниження маси тіла",0]
[null,165,"R64","Кахексія",0]
[null,null,null,null,{"$f":"SUM(E10:E174)","v":41}]

{"sheet":"Річна форма","index":2,"n_rows":175,"n_cols":17,"rows_kept":175,"cut":false,"hidden":false,"merged":[]}
[]
[null,null,null,"Тривалість періоду, за який внесені дані в таблицю    ","початок періоду (дд.мм.рррр)","2024-01-01"]
[null,null,null,null,"кінець періоду (дд.мм.рррр)","2025-01-01"]
[]
[null,"1.     Кількість пацієнтів з діагнозом (коди МКХ-10), при яких рекомендовано проводити тестування на ВІЛ-інфекцію"]
[null,null,null,"5. НК 025:2021"]
[]
[null,"№ рядка","Серійно-порядковий код","Назва захворювання або спорідненої проблеми охорони здоров’я","Кількість звернень за медичною допомогою \n","Кількість звернень за медичною допомогою \n(січень)","Кількість звернень за медичною допомогою \n(лютий)","Кількість звернень за медичною допомогою \n(березень)","Кількість звернень за медичною допомогою \n(квітень)","Кількість звернень за медичною допомогою \n(травень)","Кількість звернень за медичною допомогою \n(червень)","Кількість звернень за медичною допомогою \n(липень)","Кількість звернень за медичною допомогою \n(серпень)","Кількість звернень за медичною допомогою \n(вересень)","Кількість звернень за медичною допомогою \n(жовтень)","Кількість звернень за медичною допомогою \n(листопад)","Кількість звернень за медичною допомогою \n(грудень)"]
[null,1,2,3,4,5,6,7,8,9,10,11,12,13,14,15,16]
[null,1,"A02","Iнші сальмонельозні інфекції",{"$f":"SUM(F10:Q10)","v":0},0,0,0,0,0,0,0,0,0,0,0,0]
[null,2,"A07.2","Криптоспоридіоз",{"$f":"SUM(F11:Q11)","v":0},0,0,0,0,0,0,0,0,0,0,0,0]
[null,3,"A07.3","Iзоспороз",0,0,0,0,0,0,0,0,0,0,0,0,0]
[null,4,"A07.8","Iнші уточнені протозойні кишкові хвороби",0,0,0,0,0,0,0,0,0,0,0,0,0]
[null,5,"A09","Інший гастроентерит та коліт інфекційного та неуточненого походження",0,0,0,0,0,0,0,0,0,0,0,0,0]
[null,6,"A15","Туберкульоз органів дихання, підтверджений бактеріологічно та гістологічно",0,0,0,0,0,0,0,0,0,0,0,0,0]
[null,7,"A16","Туберкульоз органів дихання, не підтверджений бактеріологічно та гістологічно",0,0,0,0,0,0,0,0,0,0,0,0,0]
[null,8,"A17","Туберкульоз нервової системи",0,0,0,0,0,0,0,0,0,0,0,0,0]
[null,9,"A18","Туберкульоз інших органів",0,0,0,0,0,0,0,0,0,0,0,0,0]
[null,10,"A19","Міліарний туберкульоз",0,0,0,0,0,0,0,0,0,0,0,0,0]
[null,11,"A56.2","Хламідійна інфекція сечостатевого тракту, неуточнена ",0,0,0,0,0,0,0,0,0,0,0,0,0]
[null,12,"A56.3","Хламідійна інфекція ануса та прямої кишки",0,0,0,0,0,0,0,0,0,0,0,0,0]
[null,13,"A31","Iнфекція, зумовлена іншими мікобактеріями",0,0,0,0,0,0,0,0,0,0,0,0,0]
[null,14,"A32.1","Лістеріозний менінгіт та менінгоенцефаліт",0,0,0,0,0,0,0,0,0,0,0,0,0]
[null,15,"A39.0","Менінгококовий менінгіт (G01)",0,0,0,0,0,0,0,0,0,0,0,0,0]
[null,16,"А 56.4","Хламідійна інфекція глотки",0,0,0,0,0,0,0,0,0,0,0,0,0]
[null,17,"A40.3","Септицемія, спричинена Streptocoсcus pneumonіae",0,0,0,0,0,0,0,0,0,0,0,0,0]
[null,18,"A51","Ранній сифіліс",0,0,0,0,0,0,0,0,0,0,0,0,0]
[null,19,"A52","Пізній сифіліс",0,0,0,0,0,0,0,0,0,0,0,0,0]
[null,20,"A53","Iнші та неуточнені форми сифілісу",0,0,0,0,0,0,0,0,0,0,0,0,0]
[null,21,"A54","Гонококова інфекція",0,0,0,0,0,0,0,0,0,0,0,0,0]
[null,22,"A55","Хламідійна лімфогранульома (венерична)",0,0,0,0,0,0,0,0,0,0,0,0,0]
[null,23,"A59","Трихомоніаз",0,0,0,0,0,0,0,0,0,0,0,0,0]
[null,24,"A60.1","Герпесвірусна інфекція анальної ділянки та прямої кишки",0,0,0,0,0,0,0,0,0,0,0,0,0]
[null,25,"A60.9","Герпесвірусна інфекція анальної ділянки та статевих органів, неуточнена",0,0,0,0,0,0,0,0,0,0,0,0,0]
[null,26,"A63","Iнші хвороби, що передаються переважно статевим шляхом, не класифіковані в інших рубриках",0,0,0,0,0,0,0,0,0,0,0,0,0]
[null,27,"A56.8","Хламідійна інфекція, що передається статевим шляхом іншої локалізації ",0,0,0,0,0,0,0,0,0,0,0,0,0]
[null,28,"A81.2","Прогресуюча багатовогнищева лейкоенцефалопатія",0,0,0,0,0,0,0,0,0,0,0,0,0]
[null,29,"A87.9","Вірусний менінгіт неуточнений",0,0,0,0,0,0,0,0,0,0,0,0,0]
[null,30,"B00","Герпесвірусні (герпес простий) інфекційні хвороби",0,0,0,0,0,0,0,0,0,0,0,0,0]
[null,31,"B02","Оперізувальний лишай (herpes zoster)",0,0,0,0,0,0,0,0,0,0,0,0,0]
[null,32,"B16","Гострий гепатит В",0,0,0,0,0,0,0,0,0,0,0,0,0]
[null,33,"B17.1","Гострий гепатит С",0,0,0,0,0,0,0,0,0,0,0,0,0]
[null,34,"B18.0","Хронічний вірусний гепатит В з дельтаагентом",0,0,0,0,0,0,0,0,0,0,0,0,0]
[null,35,"B18.1","Хронічний вірусний гепатит В без дельтаагента ",0,0,0,0,0,0,0,0,0,0,0,0,0]
[null,36,"B18.2","Хронічний вірусний гепатит С",0,0,0,0,0,0,0,0,0,0,0,0,0]
[null,37,"B25.0","Цитомегаловірусний пневмоніт (J17.1) ",0,0,0,0,0,0,0,0,0,0,0,0,0]
[null,38,"B25.8","Iнші цитомегаловірусні хвороби",0,0,0,0,0,0,0,0,0,0,0,0,0]
[null,39,"B25.9","Цитомегаловірусна хвороба, неуточнена",0,0,0,0,0,0,0,0,0,0,0,0,0]
[null,40,"B27","Інфекційний мононуклеоз",0,0,0,0,0,0,0,0,0,0,0,0,0]
[null,41,"B37.1","Легеневий кандидоз",0,0,0,0,0,0,0,0,0,0,0,0,0]
[null,42,"B37.8","Кандидоз інших локалізацій",0,0,0,0,0,0,0,0,0,0,0,0,0]
[null,43,"B38.3","Кокцидіоїдоз шкіри",0,0,0,0,0,0,0,0,0,0,0,0,0]
[null,44,"B38.4","Кокцидіоїдомікозний менінгіт (G02.1) ",0,0,0,0,0,0,0,0,0,0,0,0,0]
[null,45,"B38.7","Дисемінований кокцидіоїдомікоз ",0,0,0,0,0,0,0,0,0,0,0,0,0]
[null,46,"B38.8","Iнші форми кокцидіоїдозу",0,0,0,0,0,0,0,0,0,0,0,0,0]
[null,47,"B38.9","Кокцидіоїдоз, неуточнений",0,0,0,0,0,0,0,0,0,0,0,0,0]
[null,48,"B39.3","Легеневий гістоплазмоз, зумовлений Histoplasma capsulatum, неуточнений\n",0,0,0,0,0,0,0,0,0,0,0,0,0]
[null,49,"B39.4","Дисемінований гістоплазмоз, зумовлений Histoplasma capsulatum",0,0,0,0,0,0,0,0,0,0,0,0,0]
[null,50,"B39.5","Гістоплазмоз, зумовлений Hіstoplasma duboіsіі ",0,0,0,0,0,0,0,0,0,0,0,0,0]
[null,51,"B39.9","Гістоплазмоз, неуточнений",0,0,0,0,0,0,0,0,0,0,0,0,0]
[null,52,"B45.1","Церебральний криптококоз ",0,0,0,0,0,0,0,0,0,0,0,0,0]
[null,53,"B45.2","Криптококоз шкіри",0,0,0,0,0,0,0,0,0,0,0,0,0]
[null,54,"B45.3","Криптококоз кісток",0,0,0,0,0,0,0,0,0,0,0,0,0]
[null,55,"B45.7","Дисемінований криптококоз ",0,0,0,0,0,0,0,0,0,0,0,0,0]
[null,56,"B45.8","Інші форми криптококозу ",0,0,0,0,0,0,0,0,0,0,0,0,0]
[null,57,"B45.9","Криптококоз, неуточнений",0,0,0,0,0,0,0,0,0,0,0,0,0]
[null,58,"B50","Малярія, спричинена Plasmodіum falcіparum",0,0,0,0,0,0,0,0,0,0,0,0,0]
[null,59,"B51","Малярія, спричинена Plasmodіum vіvax",0,0,0,0,0,0,0,0,0,0,0,0,0]
[null,60,"B52","Малярія, спричинена Plasmodіum malarіae",0,0,0,0,0,0,0,0,0,0,0,0,0]
[null,61,"B53","Iнші форми паразитологічно підтвердженої малярії",0,0,0,0,0,0,0,0,0,0,0,0,0]
[null,62,"B54","Малярія, неуточнена",0,0,0,0,0,0,0,0,0,0,0,0,0]
[null,63,"B55","Лейшманіоз",0,0,0,0,0,0,0,0,0,0,0,0,0]
[null,64,"B56","Африканський трипаносомоз ",0,0,0,0,0,0,0,0,0,0,0,0,0]
[null,65,"B57","Хвороба Шагаса",0,0,0,0,0,0,0,0,0,0,0,0,0]
[null,66,"B58","Токсоплазмоз",{"$f":"SUM(F75:Q75)","v":0},0,0,0,0,0,0,0,0,0,0,0,0]
[null,67,"B59","Пневмоцистоз",0,0,0,0,0,0,0,0,0,0,0,0,0]
[null,68,"B60.0","Бабезіоз",0,0,0,0,0,0,0,0,0,0,0,0,0]
[null,69,"B60.1","Акантамебіаз",0,0,0,0,0,0,0,0,0,0,0,0,0]
[null,70,"B60.2","Неглеріаз",0,0,0,0,0,0,0,0,0,0,0,0,0]
[null,71,"B60.8","Iнші уточнені протозойні захворювання",0,0,0,0,0,0,0,0,0,0,0,0,0]
[null,72,"B64","Неуточнена протозойна хвороба",0,0,0,0,0,0,0,0,0,0,0,0,0]
[null,73,"B65","Шистосомоз (більгарціоз)",0,0,0,0,0,0,0,0,0,0,0,0,0]
[null,74,"B66","Iнші трематодози",0,0,0,0,0,0,0,0,0,0,0,0,0]
[null,75,"B67","Ехінококоз",0,0,0,0,0,0,0,0,0,0,0,0,0]
[null,76,"B68","Теніоз ",0,0,0,0,0,0,0,0,0,0,0,0,0]
[null,77,"B69","Цистицеркоз",0,0,0,0,0,0,0,0,0,0,0,0,0]
[null,78,"B70","Дифілоботріоз і спарганоз",0,0,0,0,0,0,0,0,0,0,0,0,0]
[null,79,"B71","Інші інфекції, спричинені цестодами",0,0,0,0,0,0,0,0,0,0,0,0,0]
[null,80,"B72","Дракункульоз",0,0,0,0,0,0,0,0,0,0,0,0,0]
[null,81,"B73","Онхоцеркоз",0,0,0,0,0,0,0,0,0,0,0,0,0]
[null,82,"B74","Філяріатоз",0,0,0,0,0,0,0,0,0,0,0,0,0]
[null,83,"B75","Трихінельоз",0,0,0,0,0,0,0,0,0,0,0,0,0]
[null,84,"B76","Анкілостомідоз",0,0,0,0,0,0,0,0,0,0,0,0,0]
[null,85,"B77","Аскаридоз",0,0,0,0,0,0,0,0,0,0,0,0,0]
[null,86,"B78","Стронгілоїдоз",0,0,0,0,0,0,0,0,0,0,0,0,0]
[null,87,"B81","Iнші кишкові гельмінтози, не класифіковані в інших рубриках",0,0,0,0,0,0,0,0,0,0,0,0,0]
[null,88,"B82","Кишковий паразитизм, неуточнений",0,0,0,0,0,0,0,0,0,0,0,0,0]
[null,89,"B83","Iнші гельмінтози",0,0,0,0,0,0,0,0,0,0,0,0,0]
[null,90,"C20","Злоякісне новоутворення прямої кишки",0,0,0,0,0,0,0,0,0,0,0,0,0]
[null,91,"C34","Злоякісне новоутворення бронхів та легенів",0,0,0,0,0,0,0,0,0,0,0,0,0]
[null,92,"C46","Саркома Капоші",0,0,0,0,0,0,0,0,0,0,0,0,0]
[null,93,"C53","Злоякісне новоутворення шийки матки",0,0,0,0,0,0,0,0,0,0,0,0,0]
[null,94,"C82 ","Неходжкінська лімфома, фолікулярна (нодулярна) ",0,0,0,0,0,0,0,0,0,0,0,0,0]
[null,95,"C83","Неходжкінська лімфома, дифузна",0,0,0,0,0,0,0,0,0,0,0,0,0]
[null,96,"C84","Лімфома зі зрілих Т/NK-клітин",0,0,0,0,0,0,0,0,0,0,0,0,0]
[null,97,"C85","Iнші та неуточнені типи неходжкінської лімфоми ",0,0,0,0,0,0,0,0,0,0,0,0,0]
[null,98,"D69.5","Вторинна тромбоцитопенія",0,0,0,0,0,0,0,0,0,0,0,0,0]
[null,99,"D69.6","Тромбоцитопенія, неуточнена ",0,0,0,0,0,0,0,0,0,0,0,0,0]
[null,100,"D70","Агранолоцитоз",0,0,0,0,0,0,0,0,0,0,0,0,0]
[null,101,"F03","Неуточнена деменція",0,0,0,0,0,0,0,0,0,0,0,0,0]
[null,102,"F10","Розлади психіки та поведінки внаслідок вживання алкоголю",0,0,0,0,0,0,0,0,0,0,0,0,0]
[null,103,"F11","Розлади психіки та поведінки внаслідок вживання опіоїдів",0,0,0,0,0,0,0,0,0,0,0,0,0]
[null,104,"F12","Розлади психіки та поведінки внаслідок вживання канабіоїдів",0,0,0,0,0,0,0,0,0,0,0,0,0]
[null,105,"F13","Розлади психіки та поведінки внаслідок вживання седативних чи снодійних речовин",0,0,0,0,0,0,0,0,0,0,0,0,0]
[null,106,"F14","Розлади психіки та поведінки внаслідок вживання кокаїну",0,0,0,0,0,0,0,0,0,0,0,0,0]
[null,107,"F15","Розлади психіки та поведінки внаслідок вживання інших стимуляторів, включаючи кофеїн",0,0,0,0,0,0,0,0,0,0,0,0,0]
[null,108,"F16","Розлади психіки та поведінки внаслідок вживання галюциногенів",0,0,0,0,0,0,0,0,0,0,0,0,0]
[null,109,"F18","Розлади психіки та поведінки внаслідок вживання летючих розчинників",0,0,0,0,0,0,0,0,0,0,0,0,0]
[null,110,"F19","Розлади психіки та поведінки внаслідок вживання декількох наркотичних засобів та інших психоактивних речовин",0,0,0,0,0,0,0,0,0,0,0,0,0]
[null,111,"G00.1","Пневмококовий менінгіт",0,0,0,0,0,0,0,0,0,0,0,0,0]
[null,112,"G01","Менінгіт при бактеріальних хворобах, класифікованих в інших рубриках",0,0,0,0,0,0,0,0,0,0,0,0,0]
[null,113,"G03","Менінгіт внаслідок інших та неуточнених причин",0,0,0,0,0,0,0,0,0,0,0,0,0]
[null,114,"G35","Розсіяний склероз",0,0,0,0,0,0,0,0,0,0,0,0,0]
[null,115,"G61.0","Синдром Гійєна-Барре",0,0,0,0,0,0,0,0,0,0,0,0,0]
[null,116,"J12.0","Аденовірусна пневмонія",0,0,0,0,0,0,0,0,0,0,0,0,0]
[null,117,"J12.1","Пневмонія, спричинена респіраторносинцитіальним вірусом",0,0,0,0,0,0,0,0,0,0,0,0,0]
[null,118,"J12.2","Пневмонія, спричинена вірусом парагрипу",0,0,0,0,0,0,0,0,0,0,0,0,0]
[null,119,"J12.8","Iнша вірусна пневмонія",0,0,0,0,0,0,0,0,0,0,0,0,0]
[null,120,"J12.9","Вірусна пневмонія, неуточнена",0,0,0,0,0,0,0,0,0,0,0,0,0]
[null,121,"J13","Пневмонія, спричинена Streptococcus pneumonіae",0,0,0,0,0,0,0,0,0,0,0,0,0]
[null,122,"J14","Пневмонія, спричинена Haemophіlus іnfluenzae",0,0,0,0,0,0,0,0,0,0,0,0,0]
[null,123,"J15.0","Пневмонія, спричинена Klebsіella pneumоnіae",0,0,0,0,0,0,0,0,0,0,0,0,0]
[null,124,"J15.1","Пневмонія, спричинена Pseudomonas",0,0,0,0,0,0,0,0,0,0,0,0,0]
[null,125,"J15.2","Пневмонія стафілококова",0,0,0,0,0,0,0,0,0,0,0,0,0]
[null,126,"J15.3","Пневмонія стрептококова, групи В",0,0,0,0,0,0,0,0,0,0,0,0,0]
[null,127,"J15.4","Пневмонія, спричинена іншими стрептококами",0,0,0,0,0,0,0,0,0,0,0,0,0]
[null,128,"J15.5","Пневмонія, спричинена Escherіchіa colі",0,0,0,0,0,0,0,0,0,0,0,0,0]
[null,129,"J15.6","Пневмонія, спричинена іншими аеробними грамнегативними бактеріями",0,0,0,0,0,0,0,0,0,0,0,0,0]
[null,130,"J15.7","Пневмонія, спричинена Mycoplasmа pneumonіae",{"$f":"SUM(F139:Q139)","v":0},0,0,0,0,0,0,0,0,0,0,0,0]
[null,131,"J15.8","Iнша бактеріальна пневмонія",0,0,0,0,0,0,0,0,0,0,0,0,0]
[null,132,"J15.9","Бактеріальна пневмонія, неуточнена",0,0,0,0,0,0,0,0,0,0,0,0,0]
[null,133,"J16.0","Пневмонія, спричинена хламідіями",0,0,0,0,0,0,0,0,0,0,0,0,0]
[null,134,"J16.8","Пневмонія, спричинена іншими уточненими інфекційними агентами",0,0,0,0,0,0,0,0,0,0,0,0,0]
[null,135,"J17.0","Пневмонія при бактеріальних хворобах, класифікованих в інших рубриках",0,0,0,0,0,0,0,0,0,0,0,0,0]
[null,136,"J17.0","Пневмонія при бактеріальних хворобах, класифікованих в інших рубриках",0,0,0,0,0,0,0,0,0,0,0,0,0]
[null,137,"J17.1","Пневмонія при вірусних хворобах, класифікованих в інших рубриках",0,0,0,0,0,0,0,0,0,0,0,0,0]
[null,138,"J17.2","Пневмонія при мікозах",0,0,0,0,0,0,0,0,0,0,0,0,0]
[null,139,"J17.3","Пневмонія при паразитарних хворобах",0,0,0,0,0,0,0,0,0,0,0,0,0]
[null,140,"J17.8","Пневмонія при інших хворобах, класифікованих в інших рубриках",0,0,0,0,0,0,0,0,0,0,0,0,0]
[null,141,"J18.0","Бронхопневмонія, неуточнена",0,0,0,0,0,0,0,0,0,0,0,0,0]
[null,142,"J18.1","Дольова пневмонія, неуточнена",0,0,0,0,0,0,0,0,0,0,0,0,0]
[null,143,"J18.2","Гіпостатична пневмонія, неуточнена",0,0,0,0,0,0,0,0,0,0,0,0,0]
[null,144,"J18.8","Iнша пневмонія, збудник неуточнений",0,0,0,0,0,0,0,0,0,0,0,0,0]
[null,145,"J18.9","Пневмонія, неуточнена",0,0,0,0,0,0,0,0,0,0,0,0,0]
[null,146,"J86","Піоторакс",0,0,0,0,0,0,0,0,0,0,0,0,0]
[null,147,"K13.2","Лейкоплакія та інші ураження епітелію порожнини рота, включаючи язик",0,0,0,0,0,0,0,0,0,0,0,0,0]
[null,148,"K13.3","Волосата лейкоплакія",0,0,0,0,0,0,0,0,0,0,0,0,0]
[null,149,"L21","Себорейний дерматит",0,0,0,0,0,0,0,0,0,0,0,0,0]
[null,150,"L40","Псоріаз",0,0,0,0,0,0,0,0,0,0,0,0,0]
[null,151,"M00.10","Пневмококовий артрит і поліартрит",0,0,0,0,0,0,0,0,0,0,0,0,0]
[null,152,"M34.9","Системний склероз неуточнений",0,0,0,0,0,0,0,0,0,0,0,0,0]
[null,153,"N70","Сальпінгіт і оофорит",0,0,0,0,0,0,0,0,0,0,0,0,0]
[null,154,"N71","Запальне захворювання матки, за винятком шийки матки",0,0,0,0,0,0,0,0,0,0,0,0,0]
[null,155,"N72"," Запальне захворювання шийки матки",0,0,0,0,0,0,0,0,0,0,0,0,0]
[null,156,"N73","Інші запальні захворювання органів малого таза у жінок",0,0,0,0,0,0,0,0,0,0,0,0,0]
[null,157,"N74","Запальні ураження органів малого таза у жінок при хворобах, класифікованих в інших рубриках\n",0,0,0,0,0,0,0,0,0,0,0,0,0]
[null,158,"N75","Хвороби бартолінової залози",0,0,0,0,0,0,0,0,0,0,0,0,0]
[null,159,"N76","Iнші запальні хвороби піхви і вульви",0,0,0,0,0,0,0,0,0,0,0,0,0]
[null,160,"N77","Вульвовагінальні виразки та запалення при хворобах, класифікованих в інших рубриках",0,0,0,0,0,0,0,0,0,0,0,0,0]
[null,161,"N87","Дисплазія шийки матки",0,0,0,0,0,0,0,0,0,0,0,0,0]
[null,162,"R50.","Лихоманка іншого та невідомого походження",0,0,0,0,0,0,0,0,0,0,0,0,0]
[null,163,"R59","Збільшення лімфатичних вузлів",0,0,0,0,0,0,0,0,0,0,0,0,0]
[null,164,"R63.4","Анормальне зниження маси тіла",0,0,0,0,0,0,0,0,0,0,0,0,0]
[null,165,"R64","Кахексія",0,0,0,0,0,0,0,0,0,0,0,0,0]
[null,null,null,null,{"$f":"SUM(E10:E174)","v":0}]